[Event "Tsaghkadzor Open 2024"]
[Site "Tsaghkadzor"]
[Date "2024.10.02"]
[Round "4.7"]
[White "Nozdrachev, Vladislav"]
[Black "Yeremyan, Alen"]
[Result "1-0"]
[ECO "B33"]
[WhiteElo "2515"]
[BlackElo "2268"]
[Annotator "TA"]
[PlyCount "65"]
[EventDate "2024.09.13"]
[EventType "swiss"]
[EventCountry "ARM"]
[SourceTitle "playchess.com"]
[Source "ChessBase"]
[SourceQuality "1"]
[TimeControl "40/5400+30:1800+30"]

{[%evp 24,65,10,10,15,19,45,42,49,50,53,47,46,65,58,0,86,94,108,38,53,70,128,120,173,186,272,262,336,317,330,297,312,281,908,873,870,890,895,903,755,345,863,676]} 1. e4 {[%emt 0:00:03]} c5 {[%emt 0:00:05]} 2. Nf3 {[%emt 0:00:04]} Nc6 {[%emt 0:00:09]} 3. d4 {[%emt 0:00:05]} cxd4 {[%emt 0:00:18]} 4. Nxd4 {[%emt 0:00:05]} Nf6 {[%emt 0:00:15]} 5. Nc3 {[%emt 0:00:04]} e5 {[%emt 0:00:59]} 6. Ndb5 {[%emt 0:00:05]} d6 {[%emt 0:00:06]} 7. Nd5 {[%emt 0:00:04]} Nxd5 {[%emt 0:00:49]} 8. exd5 {[%emt 0:00:05]} Nb8 {[%emt 0:00:47]} 9. a4 {[%emt 0:00:27]} Be7 {[%emt 0:06:51]} 10. Be2 {[%emt 0:00:14]} O-O {[%emt 0:01:36]} 11. O-O {[%emt 0:00:20]} f5 {[%emt 0:07:11]} 12. f4 {[%emt 0:00:16]} a6 {[%emt 0:08:18]} 13. Na3 {[%emt 0:00:24]} Nd7 {[%emt 0:05:59]} 14. Nc4 {[%emt 0:00:15]} Bf6 {[%emt 0:08:47]} 15. Kh1 {[%emt 0:02:24]} (15. Nxd6 $2 Qb6+ 16. Kh1 Qxd6 $19) 15... Qe7 {[%emt 0:06:48] White is slightly better.} 16. Ra3 {[%emt 0:03:20][%cal Ba1a3,Ba3e3,Be3g3][%mdl 32]} Rb8 {[%emt 0:07:49]} 17. Re3 {[%emt 0:15:54]} b6 {[%emt 0:17:38]} 18. b3 {[%emt 0:02:03] Hoping for Ba3.} e4 {[%emt 0:01:17]} 19. b4 {[%emt 0:03:40] Inhibits Nc5.} (19. Ba3 $14 Nc5 20. a5) 19... g6 {[%emt 0:03:01]} (19... b5 $11 20. Na5 Qf7) 20. g4 $16 {[%emt 0:00:52]} Bg7 {[%emt 0:01:20]} 21. gxf5 {[%emt 0:00:42]} Rxf5 {[%emt 0:01:43]} 22. Rg3 {[%emt 0:08:17]} Rf8 {[%emt 0:04:01]} ({Black should play} 22... Rf7 $14) 23. Be3 {[%emt 0:01:09] White is more active.} Bb7 {[%emt 0:04:23]} (23... Bh6 $16 24. f5 Bxe3) 24. Bg4 $18 {[%emt 0:01:02] Be6+ would now be deadly.} (24. Nxb6 Nxb6 25. Bxb6 Rf5 $16) 24... Rf6 {[%emt 0:02:38]} (24... Bc8 {was worth a try.} 25. Be6+ Kh8) 25. Be6+ {[%emt 0:02:33]} (25. Bxb6 e3 26. Bxe3 (26. Rxe3 Qf7 $15) 26... Qe4+ 27. Kg1 Qxc4 28. Bxd7 Bxd5 $11) (25. Nxb6 Nxb6 26. Bxb6 Bc8 $16) 25... Rxe6 {[%emt 0:01:58]} 26. dxe6 {[%emt 0:00:05]} Qxe6 {[%emt 0:00:05]} 27. Nxd6 {[%emt 0:00:27]} (27. Nxb6 $2 {is the wrong capture.} Nxb6 28. f5 Qe5 (28... gxf5 $2 29. Rfg1 $18) 29. fxg6 Nd5 (29... Nxa4 $2 30. gxh7+ Kh8 31. Rfg1 $18) 30. gxh7+ Kh8 $19) 27... Bd5 {[%emt 0:02:11]} 28. c4 {[%emt 0:00:10]} Bxc4 {[%emt 0:00:55] [#]} (28... Qxd6 29. cxd5 (29. Qxd5+ Qxd5 30. cxd5 b5 $18) 29... Rc8) 29. f5 {[%emt 0:00:22]} Qd5 {[%emt 0:00:58]} 30. Nxc4 {[%emt 0:00:29]} Qxc4 {[%emt 0:00:41]} 31. fxg6 {[%emt 0:00:06]} h6 {[%emt 0:01:42]} 32. Qc1 {[%emt 0:03:03]} (32. Rf7 $142 Ne5 33. Qd6 (33. Qd4 Qxd4 34. Bxd4 Nxf7 $18)) 32... Qe6 {[%emt 0:00:51] [#]} (32... Qxc1 33. Rxc1 Be5) 33. Bxh6 {[%emt 0:00:20] Weighted Error Value: White=0.61/Black=0.44.  Mistake:       	White=1     	Black=5      Inaccurate:     	---       	Black=1      OK:         	White=9     	Black=3      Best:        	White=1     	---} 1-0

[Event "Tsaghkadzor Open 2024"]
[Site "Tsaghkadzor"]
[Date "2024.10.02"]
[Round "4.8"]
[White "Sahakyan, Aleks"]
[Black "Pour Agha Bala, Amirreza"]
[Result "1-0"]
[ECO "B51"]
[WhiteElo "2267"]
[BlackElo "2506"]
[Annotator "TA"]
[PlyCount "71"]
[EventDate "2024.09.13"]
[EventType "swiss"]
[EventCountry "ARM"]
[SourceTitle "playchess.com"]
[Source "ChessBase"]
[SourceQuality "1"]
[TimeControl "40/5400+30:1800+30"]

{[%evp 14,71,39,36,34,30,36,27,39,29,32,28,23,21,33,32,70,8,22,0,24,5,37,34,45,53,41,45,34,52,45,-48,-62,-49,-66,-67,-58,-60,0,0,0,-58,55,14,179,170,166,182,176,162,327,324,305,202,29990,29991,29994,29995,29997,29998]} 1. e4 {[%emt 0:00:03]} c5 {[%emt 0:00:38]} 2. Nf3 {[%emt 0:00:06]} d6 {[%emt 0:00:15]} 3. Bb5+ {[%emt 0:00:05]} Nc6 {[%emt 0:00:29]} 4. O-O {[%emt 0:00:18]} Bd7 {[%emt 0:00:07]} 5. Re1 {[%emt 0:00:20]} a6 {[%emt 0:00:26]} 6. Bxc6 {[%emt 0:00:36]} Bxc6 {[%emt 0:00:16]} 7. d4 {[%emt 0:00:06]} cxd4 {[%emt 0:00:21]} 8. Nxd4 {[%emt 0:00:05]} Rc8 {[%emt 0:00:12]} 9. c4 {[%emt 0:03:16]} Nf6 {[%emt 0:00:10]} 10. Nc3 {[%emt 0:00:17]} e6 {[%emt 0:00:14] White has an edge.} 11. b3 {[%emt 0:03:20][%cal Oc3d5]} Be7 {[%emt 0:00:06]} 12. Bb2 {[%emt 0:01:06]} O-O {[%emt 0:00:13]} 13. Qd2 {[%emt 0:03:50]} Bd7 {[%emt 0:00:29]} 14. Rad1 {[%emt 0:02:13]} Qc7 {[%emt 0:00:40]} 15. Qd3 {[%emt 0:13:52] White is more active.} ({White should try} 15. Ba3 $14) 15... Rfe8 $11 {[%emt 0:11:16]} 16. Qg3 {[%emt 0:01:33]} g6 {[%emt 0:00:23]} 17. a4 {[%emt 0:11:34]} Rcd8 {[%emt 0:15:49]} 18. Ba3 {[%emt 0:02:17]} Bc8 {[%emt 0:01:37] [#]} 19. c5 $1 {[%emt 0:09:56] aiming for cxd6.} Nh5 $1 {[%emt 0:04:01]} 20. cxd6 {[%emt 0:01:22]} Rxd6 {[%emt 0:02:55]} 21. Bxd6 {[%emt 0:08:56]} Bxd6 {[%emt 0:00:15]} 22. Qh3 {[%emt 0:02:44]} ({White should play} 22. Qe3 $14 Bxh2+ 23. Kf1) 22... e5 $1 $15 {[%emt 0:01:03][%csl LRd4,LRh3][%mdl 1024] Black has compensation.} 23. Nf5 $1 {[%emt 0:01:00]} Nf4 {[%emt 0:00:08] Repels Nd5} (23... gxf5 $2 24. Qxh5 (24. Nd5 Qd8 $18) 24... Qxc3 25. Qg5+ (25. exf5 e4 $11) 25... Kh8 26. Re3 $18 (26. exf5 e4 $17) (26. Qf6+ Kg8 $18)) 24. Qg3 {[%emt 0:02:10]} Bb4 {[%emt 0:01:31]} 25. Rc1 {[%emt 0:03:05]} Rd8 {[%emt 0:02:37]} (25... Be6 $1 $15 26. Re3 (26. Nd5 $2 Ne2+ 27. Kh1 Nxg3+ $19) 26... Ba3 (26... Bxb3 27. h3 $11)) 26. Kf1 $11 {[%emt 0:07:03]} (26. Nd5 $2 Ne2+ 27. Kf1 Nxg3+ $19) 26... Qa5 {[%emt 0:12:02] Prevents Nd5.} 27. Red1 {[%emt 0:06:28]} (27. Qg5 $11 Ne6 (27... Bxc3 $2 {is the wrong capture.} 28. Rxc3 Be6 29. Qf6 $18) (27... Bxf5 28. exf5 h6 29. Qf6 $14) 28. Nh6+ Kg7 29. Nf5+ Kg8 (29... Kf8 $2 30. Qf6 $18) 30. Ne7+ Kg7 (30... Kf8 $2 31. Qf6 $18) 31. Nf5+ Kg8 (31... Kf8 $2 32. Qf6 $18)) 27... Be6 {[%emt 0:03:06]} (27... Rxd1+ $1 $15 28. Nxd1 Qd8) 28. Qg5 {[%emt 0:04:00]} Re8 {[%emt 0:06:49] [#] This move loses the game for Black.} (28... Rxd1+ $1 $11 29. Rxd1 (29. Nxd1 Nd3 $11) 29... Bf8 (29... Bxc3 30. Qd8+ Qxd8 31. Rxd8#) (29... Bxf5 $2 30. exf5 Bf8 31. fxg6 $18)) 29. Nd5 $1 $18 {[%emt 0:03:45]} Nxd5 {[%emt 0:09:41]} 30. Nh6+ {[%emt 0:00:09]} Kg7 {[%emt 0:00:06]} 31. exd5 $40 {[%emt 0:00:36][%mdl 128] White is out for blood.} f6 $2 {[%emt 0:00:30]} (31... Bd7) 32. Qh4 {[%emt 0:01:23]} Bxd5 {[%emt 0:01:04]} 33. Ng4 {[%emt 0:01:39]} Rf8 {[%emt 0:00:39] [#]} (33... Be7 $18 34. b4 Qxb4) 34. Rxd5 $1 {[%emt 0:01:02][%mdl 512] White mates.} Qxd5 {[%emt 0:00:29]} (34... Be7 35. Rxa5) 35. Rc7+ {[%emt 0:00:04]} Rf7 {[%emt 0:00:05]} 36. Qxf6+ {[%emt 0:00:09] Weighted Error Value: White=0.26 (precise) /Black=0.43.  Loses game:     	---       	Black=1      Mistake:       	White=3     	Black=4      Inaccurate:     	White=2     	Black=2      OK:         	White=7     	Black=9      Best:        	White=2     	Black=2      Strong:       	White=1     	Black=2      Brilliant:      	White=1     	---} 1-0